fUST/lending_fUST_20240807
["ID","MTS","AMOUNT","RATE_DAILY","PERIOD"]
[334383899,1723017043533,-207.328412,0.00025881,7]
[334383900,1723017043543,-183.107848,0.00025881,7]
[334383901,1723017043555,-183.107848,0.00025881,7]
[334383902,1723017043565,-151.0,0.00025881,7]
[334383903,1723017043575,-151.0,0.00025881,7]
[334383904,1723017043585,-770.82007,0.00025881,7]
[334383905,1723017043594,-770.82007,0.00025881,7]
[334383906,1723017043604,-189.52144051,0.0002589,2]
[334383907,1723017043615,-42341.71391136,0.0002589,2]
[334383908,1723017043626,-2124.51614001,0.00026012,2]
[334383909,1723017043638,-161.904374,0.00026012,7]
[334383910,1723017043648,-161.904374,0.00026012,7]
[334383911,1723017043658,-242.945912,0.00026012,7]
[334383912,1723017043668,-242.945912,0.00026012,7]
[334383913,1723017043677,-596.85892515,0.00026335,2]
[334383914,1723017043687,-1363.69574407,0.00026412,2]
[334383915,1723017043699,-1363.69574407,0.00026412,2]
[334383916,1723017043708,-313.674243,0.0002694,7]
[334383917,1723017043720,-313.674243,0.0002694,7]
[334383918,1723017043730,-228.998388,0.0002694,7]
[334383919,1723017043740,-156.40052,0.0002694,7]
[334383920,1723017043751,-228.998388,0.0002694,7]
[334383921,1723017043761,-156.40052,0.0002694,7]
[334383922,1723017043771,-150.112233,0.000272,5]
[334383923,1723017043781,-238.38982564,0.00027396,2]
[334383924,1723017043791,-172.450357,0.00027397,7]
[334383925,1723017043802,-172.450357,0.00027397,7]
[334383926,1723017043812,-172.450357,0.00027397,7]
[334383927,1723017043821,-172.450357,0.00027397,7]
[334383928,1723017043830,-172.450357,0.00027397,7]
[334383929,1723017043839,-172.450357,0.00027397,7]
[334383930,1723017043849,-172.450357,0.00027397,7]
[334383931,1723017043858,-172.450357,0.00027397,7]
[334383932,1723017043868,-621.1498191,0.00027495,2]
[334383933,1723017043878,-193.066276,0.00027511,7]
[334383934,1723017043888,-1276.07140902,0.00028005,2]
[334383935,1723017043898,-163.968193,0.00028493,2]
[334383936,1723017043908,-162.954045,0.00028687,2]
[334383937,1723017043918,-151.0,0.00028747,7]
[334383938,1723017043928,-247.654133,0.00028747,7]
[334383939,1723017043938,-30659.3518097,0.00028748,3]
[334383940,1723017043948,-150.0,0.00028758,2]
[334383941,1723017043958,-507.0,0.00028758,2]
[334383942,1723017043967,-1411.0,0.00028758,2]
[334383943,1723017043978,-212.02,0.00028758,2]
[334383944,1723017043988,-150.215,0.00028758,2]
[334383945,1723017043998,-150.427,0.00028758,2]
[334383946,1723017044009,-150.0,0.00028758,2]
[334383947,1723017044020,-349.013137,0.00028758,7]
[334383948,1723017044030,-349.013137,0.00028758,7]
[334383949,1723017044044,-596.85892515,0.00029413,2]
[334383950,1723017044056,-5578.2935,0.00029843,30]
[334383951,1723017044067,-153.1,0.00029847,120]
[334383952,1723017044079,-150.5,0.00029857,120]
[334383953,1723017044089,-150.5,0.00029867,120]
[334383954,1723017044100,-154.72922386,0.0003,4]
[334383955,1723017044113,-600.0,0.0003,2]
[334383956,1723017044124,-246.06395733,0.0003,3]
[334383957,1723017044133,-270.0,0.0003,2]
[334383958,1723017044143,-151.0,0.0003,120]
[334383959,1723017044153,-151.0,0.0003,120]
[334383960,1723017044162,-163.0,0.0003,2]
[334383961,1723017044172,-524.447542,0.00030137,7]
[334383962,1723017044182,-524.447542,0.00030137,7]
[334383963,1723017044191,-524.447542,0.00030137,7]
[334383964,1723017044200,-524.447542,0.00030137,7]
[334383965,1723017044209,-4203.518596,0.00030137,7]
[334383966,1723017044219,-4203.518596,0.00030137,7]
[334383967,1723017044228,-1415.669646,0.00030137,7]
[334383968,1723017044238,-1415.669646,0.00030137,7]
[334383969,1723017044247,-207.328412,0.00030137,7]
[334383970,1723017044256,-207.328412,0.00030137,7]
[334383971,1723017044266,-183.107848,0.00030137,7]
[334383972,1723017044275,-183.107848,0.00030137,7]
[334383973,1723017044285,-770.82007,0.00030137,7]
[334383974,1723017044295,-770.82007,0.00030137,7]
[334383975,1723017044306,-542.877347,0.00030192,2]
[334383976,1723017044315,-600.0,0.00030411,2]
[334383977,1723017044324,-163.0,0.00030411,2]
[334383978,1723017044334,-151.0,0.00030414,6]
[334383979,1723017044343,-151.0,0.00030414,6]
[334383980,1723017044353,-5000.0,0.0003058,30]
[334383981,1723017044362,-5883.8976,0.0003068,30]
[334383982,1723017044371,-151.0,0.0003068,7]
[334383983,1723017044381,-1276.07140902,0.00030874,2]
[334383984,1723017044390,-313.674243,0.0003099,7]
[334383985,1723017044400,-313.674243,0.0003099,7]
[334383986,1723017044409,-228.998388,0.0003099,7]
[334383987,1723017044419,-156.40052,0.0003099,7]
[334383988,1723017044430,-228.998388,0.0003099,7]
[334383989,1723017044440,-156.40052,0.0003099,7]
[334383990,1723017044449,-161.904374,0.0003099,7]
[334383991,1723017044458,-161.904374,0.0003099,7]
[334383992,1723017044468,-1249.638318,0.0003099,7]
[334383993,1723017044477,-1249.638318,0.0003099,7]
[334383994,1723017044486,-172.450357,0.0003099,7]
[334383995,1723017044495,-172.450357,0.0003099,7]
[334383996,1723017044504,-30659.3518097,0.0003099,4]
[334383997,1723017044513,-242.945912,0.0003099,7]
[334383998,1723017044524,-242.945912,0.0003099,7]
[334383999,1723017044533,-4203.518596,0.0003099,7]
[334384000,1723017044542,-4203.518596,0.0003099,7]
[334384001,1723017044551,-1415.669646,0.0003099,7]
[334384002,1723017044561,-1415.669646,0.0003099,7]
[334384003,1723017044570,-207.328412,0.0003099,7]
[334384004,1723017044580,-207.328412,0.0003099,7]
[334384005,1723017044589,-183.107848,0.0003099,7]
[334384006,1723017044599,-183.107848,0.0003099,7]
[334384007,1723017044608,-151.0,0.0003099,7]
[334384008,1723017044618,-770.82007,0.0003099,7]
[334384009,1723017044628,-770.82007,0.0003099,7]
[334384010,1723017044638,-6799.83831419,0.00031,2]
[334384011,1723017044647,-51000.0,0.00031,2]
[334384012,1723017044656,-316.334504,0.00031,7]
[334384013,1723017044666,-316.334504,0.00031,7]
[334384014,1723017044675,-193.066276,0.00031,7]
[334384015,1723017044685,-349.013137,0.00031,7]
[334384016,1723017044694,-349.013137,0.00031,7]
[334384017,1723017044704,-313.674243,0.00031,7]
[334384018,1723017044713,-313.674243,0.00031,7]
[334384019,1723017044723,-228.998388,0.00031,7]
[334384020,1723017044738,-156.40052,0.00031,7]
[334384021,1723017044753,-228.998388,0.00031,7]
[334384022,1723017044768,-156.40052,0.00031,7]
[334384023,1723017044781,-161.904374,0.00031,7]
[334384024,1723017044793,-161.904374,0.00031,7]
[334384025,1723017044807,-1249.638318,0.00031,7]
[334384026,1723017044820,-1249.638318,0.00031,7]
[334384027,1723017044834,-172.450357,0.00031,7]
[334384028,1723017044849,-172.450357,0.00031,7]
[334384029,1723017044862,-242.945912,0.00031,7]
[334384030,1723017044878,-242.945912,0.00031,7]
[334384031,1723017044891,-4203.518596,0.00031,7]
[334384032,1723017044905,-4203.518596,0.00031,7]
[334384033,1723017044918,-1415.669646,0.00031,7]
[334384034,1723017044931,-1415.669646,0.00031,7]
[334384035,1723017044944,-207.328412,0.00031,7]
[334384036,1723017044957,-207.328412,0.00031,7]
[334384037,1723017044969,-183.107848,0.00031,7]
[334384038,1723017044980,-183.107848,0.00031,7]
[334384039,1723017044993,-151.0,0.00031,7]
[334384040,1723017045005,-770.82007,0.00031,7]
[334384041,1723017045018,-770.82007,0.00031,7]
[334384042,1723017045033,-313.674243,0.0003125,7]
[334384043,1723017045049,-313.674243,0.0003125,7]
[334384044,1723017045063,-228.998388,0.0003125,7]
[334384045,1723017045077,-156.40052,0.0003125,7]
[334384046,1723017045089,-228.998388,0.0003125,7]
[334384047,1723017045099,-156.40052,0.0003125,7]
[334384048,1723017045111,-161.904374,0.0003125,7]
[334384049,1723017045122,-161.904374,0.0003125,7]
[334384050,1723017045145,-1249.638318,0.0003125,7]
[334384051,1723017045159,-1249.638318,0.0003125,7]
[334384052,1723017045172,-172.450357,0.0003125,7]
[334384053,1723017045183,-172.450357,0.0003125,7]
[334384054,1723017045197,-30659.3518097,0.0003125,4]
[334384055,1723017045209,-242.945912,0.0003125,7]
[334384056,1723017045223,-242.945912,0.0003125,7]
[334384057,1723017045235,-4203.518596,0.0003125,7]
[334384058,1723017045248,-4203.518596,0.0003125,7]
[334384059,1723017045258,-1415.669646,0.0003125,7]
[334384060,1723017045269,-1415.669646,0.0003125,7]
[334384061,1723017045280,-207.328412,0.0003125,7]
[334384062,1723017045293,-207.328412,0.0003125,7]
[334384063,1723017045305,-183.107848,0.0003125,7]
[334384064,1723017045316,-183.107848,0.0003125,7]
[334384065,1723017045329,-770.82007,0.0003125,7]
[334384066,1723017045342,-770.82007,0.0003125,7]
[334384067,1723017045354,-40000.0,0.0003126,3]
[334384068,1723017045366,-193.066276,0.0003126,7]
[334384069,1723017045377,-349.013137,0.0003126,7]
[334384070,1723017045389,-349.013137,0.0003126,7]
[334384071,1723017045400,-228.998388,0.0003126,7]
[334384072,1723017045412,-156.40052,0.0003126,7]
[334384073,1723017045425,-228.998388,0.0003126,7]
[334384074,1723017045436,-156.40052,0.0003126,7]
[334384075,1723017045448,-161.904374,0.0003126,7]
[334384076,1723017045460,-161.904374,0.0003126,7]
[334384077,1723017045472,-1249.638318,0.0003126,7]
[334384078,1723017045484,-1249.638318,0.0003126,7]
[334384079,1723017045495,-172.450357,0.0003126,7]
[334384080,1723017045507,-172.450357,0.0003126,7]
[334384081,1723017045519,-242.945912,0.0003126,7]
[334384082,1723017045530,-242.945912,0.0003126,7]
[334384083,1723017045541,-4203.518596,0.0003126,7]
[334384084,1723017045552,-4203.518596,0.0003126,7]
[334384085,1723017045564,-1415.669646,0.0003126,7]
[334384086,1723017045575,-1415.669646,0.0003126,7]
[334384087,1723017045586,-207.328412,0.0003126,7]
[334384088,1723017045597,-207.328412,0.0003126,7]
[334384089,1723017045609,-183.107848,0.0003126,7]
[334384090,1723017045621,-183.107848,0.0003126,7]
[334384091,1723017045632,-770.82007,0.0003126,7]
[334384092,1723017045643,-770.82007,0.0003126,7]
[334384093,1723017045654,-30659.3518097,0.00031276,4]
[334384094,1723017045666,-151.0,0.00031277,7]
[334384095,1723017045677,-151.0,0.00031277,7]
[334384096,1723017045688,-151.0,0.00031277,7]
[334384097,1723017045701,-524.447542,0.00031277,7]
[334384098,1723017045714,-524.447542,0.00031277,7]
[334384099,1723017045727,-193.066276,0.00031286,7]
[334384100,1723017045738,-349.013137,0.00031286,7]
[334384101,1723017045752,-349.013137,0.00031286,7]
[334384102,1723017045763,-167.31,0.000313,7]
[334384103,1723017045775,-4637.12,0.000313,14]
[334384104,1723017045787,-1865.57845181,0.000315,2]
[334384105,1723017045799,-456.551764,0.00031507,120]
[334384106,1723017045811,-600.0,0.00031561,2]
[334384107,1723017045824,-600.0,0.00031644,2]
[334384108,1723017045836,-163.0,0.00031644,2]
[334384109,1723017045848,-6599.36983762,0.0003168,30]
[334384110,1723017045860,-150.0,0.00031758,2]
[334384111,1723017045871,-507.0,0.00031758,2]
[334384112,1723017045882,-1411.0,0.00031758,2]
[334384113,1723017045894,-150.0,0.00031758,2]
[334384114,1723017045908,-166.099935,0.00031781,2]
[334384115,1723017045921,-1004.277317,0.000318,10]
[334384116,1723017045933,-600.0,0.0003189,2]
[334384117,1723017045946,-151.0,0.00031937,7]
[334384118,1723017045958,-1000.0,0.00032,32]
[334384120,1723017045970,-316.334504,0.00032,7]
[334384122,1723017045981,-316.334504,0.00032,7]
[334384123,1723017045992,-151.0,0.00032002,7]
[334384124,1723017046004,-151.0,0.00032002,7]
[334384125,1723017046017,-151.0,0.00032022,7]
[334384126,1723017046033,-151.0,0.00032022,7]
[334384127,1723017046047,-524.447542,0.00032022,7]
[334384128,1723017046059,-524.447542,0.00032022,7]
[334384129,1723017046072,-316.334504,0.00032022,7]
[334384130,1723017046084,-316.334504,0.00032022,7]
[334384131,1723017046098,-193.066276,0.00032022,7]
[334384132,1723017046112,-349.013137,0.00032022,7]
[334384133,1723017046124,-349.013137,0.00032022,7]
[334384134,1723017046137,-154.7037992,0.00032026,2]
[334384135,1723017046151,-153.0,0.00032055,2]
[334384136,1723017046163,-294.4233554,0.00032055,2]
[334384137,1723017046174,-207.1149566,0.00032055,2]
[334384138,1723017046187,-153.0,0.00032055,2]
[334384139,1723017046200,-153.0,0.00032055,2]
[334384140,1723017046212,-294.4233554,0.00032055,2]
[334384141,1723017046225,-207.1149566,0.00032055,2]
[334384144,1723017046237,-294.4233554,0.00032055,2]
[334384146,1723017046250,-153.0,0.00032055,2]
[334384148,1723017046262,-207.1149566,0.00032055,2]
[334384150,1723017046274,-294.4233554,0.00032055,2]
[334384152,1723017046287,-153.0,0.00032055,2]
[334384153,1723017046299,-207.1149566,0.00032055,2]
[334384154,1723017046313,-294.4233554,0.00032055,2]
[334384155,1723017046326,-207.1149566,0.00032055,2]
[334384157,1723017046338,-153.0,0.00032055,2]
[334384159,1723017046351,-294.4233554,0.00032055,2]
[334384161,1723017046363,-207.1149566,0.00032055,2]
[334384163,1723017046375,-294.4233554,0.00032055,2]
[334384164,1723017046388,-207.1149566,0.00032055,2]
[334384166,1723017046399,-294.4233554,0.00032055,2]
[334384167,1723017046413,-207.1149566,0.00032055,2]
[334384168,1723017046433,-294.4233554,0.00032055,2]
[334384169,1723017046444,-207.1149566,0.00032055,2]
[334384170,1723017046456,-294.4233554,0.00032055,2]
[334384171,1723017046467,-294.4233554,0.00032055,2]
[334384172,1723017046482,-588.7119953,0.00032055,2]
[334384173,1723017046493,-294.4233554,0.00032055,2]
[334384174,1723017046504,-294.4233554,0.00032055,2]
[334384175,1723017046514,-294.4233554,0.00032055,2]
[334384176,1723017046526,-240.8788346,0.00032055,2]
[334384177,1723017046536,-161.904374,0.00032055,7]
[334384178,1723017046547,-161.904374,0.00032055,7]
[334384179,1723017046558,-1249.638318,0.00032055,7]
[334384180,1723017046569,-1249.638318,0.00032055,7]
[334384181,1723017046580,-172.450357,0.00032055,7]
[334384182,1723017046591,-172.450357,0.00032055,7]
[334384183,1723017046602,-242.945912,0.00032055,7]
[334384184,1723017046613,-242.945912,0.00032055,7]
[334384185,1723017046624,-4203.518596,0.00032055,7]
[334384186,1723017046635,-4203.518596,0.00032055,7]
[334384187,1723017046647,-1415.669646,0.00032055,7]
[334384188,1723017046658,-1415.669651,0.00032055,7]
[334384189,1723017046670,-207.328412,0.00032055,7]
[334384190,1723017046680,-207.328404,0.00032055,7]
[334384191,1723017046692,-183.107848,0.00032055,7]
[334384192,1723017046702,-183.107854,0.00032055,7]
[334384193,1723017046712,-770.82007,0.00032055,7]
[334384194,1723017046721,-770.820075,0.00032055,7]
[334384195,1723017046731,-228.998388,0.00032107,7]
[334384196,1723017046742,-156.40052,0.00032107,7]
[334384197,1723017046752,-228.998395,0.00032107,7]
[334384198,1723017046762,-156.400521,0.00032107,7]
[334384200,1723017046772,-600.0,0.00032218,2]
[334384202,1723017046782,-1000.0,0.000323,10]
[334384203,1723017046792,-155.0,0.0003234,27]
[334384204,1723017046801,-4637.12,0.000324,14]
[334384205,1723017047093,-151.0,0.00032482,7]
[334384206,1723017047120,-151.0,0.00032482,7]
[334384207,1723017047134,-524.447542,0.00032482,7]
[334384208,1723017047143,-524.447542,0.00032482,7]
[334384209,1723017047153,-316.334504,0.00032482,7]
[334384210,1723017047162,-316.334504,0.00032482,7]
[334384211,1723017047191,-193.066276,0.00032482,7]
[334384212,1723017047201,-349.013137,0.00032482,7]
[334384213,1723017047210,-349.013137,0.00032482,7]
[334384214,1723017047219,-313.674243,0.00032482,7]
[334384215,1723017047229,-313.674243,0.00032482,7]
[334384216,1723017047238,-161.904374,0.00032482,7]
[334384217,1723017047247,-161.904374,0.00032482,7]
[334384218,1723017047257,-1249.638318,0.00032482,7]
[334384219,1723017047266,-1249.63831612,0.00032482,7]
[334384220,1723017047275,-172.450357,0.00032482,7]
[334384221,1723017047285,-172.450352,0.00032482,7]
[334384222,1723017047296,-242.945912,0.00032482,7]
[334384223,1723017047305,-242.945912,0.00032482,7]
[334384224,1723017047314,-596.85892515,0.0003249,2]
[334384225,1723017047324,-30659.3518097,0.0003249,4]
[334384226,1723017047333,-1820.65458778,0.0003249,2]
[334384227,1723017047342,-175.698448,0.00032492,7]
[334384228,1723017047352,-151.0,0.00032492,7]
[334384229,1723017047361,-229.839952,0.00032492,7]
[334384230,1723017047371,-524.447542,0.00032492,7]
[334384231,1723017047380,-524.447542,0.00032492,7]
[334384232,1723017047389,-316.334504,0.00032492,7]
[334384233,1723017047399,-316.334504,0.00032492,7]
[334384234,1723017047409,-349.013137,0.00032492,7]
[334384235,1723017047419,-349.013139,0.00032492,7]
[334384236,1723017047428,-167.31,0.000325,7]
[334384237,1723017047438,-151.0,0.0003258,7]
[334384238,1723017047465,-193.066266,0.0003258,7]
[334384239,1723017047475,-313.674243,0.0003258,7]
[334384240,1723017047485,-313.674235,0.0003258,7]
[334384241,1723017047495,-151.0,0.0003259,7]
[334384242,1723017047504,-151.0,0.0003259,7]
[334384243,1723017047513,-524.447542,0.0003259,7]
[334384244,1723017047522,-524.447542,0.0003259,7]
[334384245,1723017047531,-316.334504,0.0003259,7]
[334384246,1723017047541,-316.334504,0.0003259,7]
[334384247,1723017047550,-161.904374,0.0003259,7]
[334384248,1723017047559,-161.904375,0.0003259,7]
[334384249,1723017047568,-242.945912,0.0003259,7]
[334384250,1723017047577,-242.945918,0.0003259,7]
[334384251,1723017047586,-151.0,0.00032592,7]
[334384252,1723017047594,-524.447542,0.00032592,7]
[334384253,1723017047603,-524.447542,0.00032592,7]
[334384254,1723017047612,-316.334504,0.00032592,7]
[334384255,1723017047621,-316.33451175,0.00032592,7]
[334384256,1723017047631,-41733.506293,0.000326,30]
[334384257,1723017047640,-150.112233,0.000326,5]
[334384258,1723017047649,-151.0,0.000326,7]
[334384259,1723017047658,-151.0,0.000326,7]
[334384260,1723017047668,-524.447542,0.000326,7]
[334384261,1723017047677,-524.447542,0.000326,7]
[334384262,1723017047686,-151.0,0.00032602,7]
[334384263,1723017047695,-524.447542,0.00032602,7]
[334384264,1723017047705,-524.447546,0.00032602,7]
[334384265,1723017047714,-4050.7,0.00032602,7]
[334384266,1723017047725,-4050.7,0.00032602,7]
[334384267,1723017047736,-4050.7,0.00032602,7]
[334384268,1723017047747,-4050.7,0.00032602,7]
[334384269,1723017047758,-4050.7,0.00032602,7]
[334384270,1723017047768,-4050.7,0.00032602,7]
[334384271,1723017047779,-4050.7,0.00032602,7]
[334384272,1723017047789,-4050.7,0.00032602,7]
[334384273,1723017047799,-4050.7,0.00032602,7]
[334384274,1723017047810,-4050.7,0.00032602,7]
[334384275,1723017047820,-4050.7,0.00032602,7]
[334384276,1723017047830,-4050.7,0.00032602,7]
[334384277,1723017047840,-4050.7,0.00032602,7]
[334384278,1723017047850,-4050.7,0.00032602,7]
[334384279,1723017047859,-4050.7,0.00032602,7]
[334384280,1723017047869,-4050.7,0.00032602,7]
[334384281,1723017047879,-4050.7,0.00032602,7]
[334384282,1723017047888,-4050.7,0.00032602,7]
[334384283,1723017047898,-1000.0,0.00032635,2]
[334384284,1723017047907,-1074.66071709,0.00032643,2]
[334384285,1723017047916,-1000.0,0.00032666,2]
[334384286,1723017047926,-1000.0,0.00032677,2]
[334384287,1723017047936,-1000.0,0.00032679,2]
[334384288,1723017047945,-4700.889,0.0003268,48]
[334384289,1723017047973,-4050.7,0.00032688,7]
[334384290,1723017047982,-151.0,0.00032689,7]
[334384291,1723017047991,-16411.93532087,0.0003269,2]
[334384292,1723017048001,-151.0,0.0003269,7]
[334384293,1723017048012,-1000.0,0.00032692,2]
[334384294,1723017048022,-800.19589455,0.00032698,20]
[334384295,1723017048032,-12007.69153083,0.000327,4]
[334384296,1723017048044,-1000.0,0.00032714,2]
[334384297,1723017048054,-1000.0,0.00032718,2]
[334384298,1723017048064,-1000.0,0.00032723,2]
[334384299,1723017048074,-1000.0,0.00032725,2]
[334384300,1723017048084,-1000.0,0.00032753,2]
[334384301,1723017048094,-1000.0,0.00032757,2]
[334384302,1723017048104,-1000.0,0.00032773,2]
[334384303,1723017048113,-1000.0,0.00032775,2]
[334384304,1723017048122,-1000.0,0.00032775,2]
[334384305,1723017048133,-1000.0,0.00032791,2]
[334384306,1723017048142,-1000.0,0.00032792,2]
[334384307,1723017048152,-3000.0,0.000328,13]
[334384308,1723017048163,-300.0,0.000328,2]
[334384309,1723017048172,-300.430983,0.000328,16]
[334384310,1723017048183,-1000.0,0.000328,10]
[334384311,1723017048192,-1000.0,0.00032803,2]
[334384312,1723017048202,-500.0,0.00032809,2]
[334384313,1723017048211,-4050.7,0.00032809,7]
[334384314,1723017048221,-4050.7,0.00032809,7]
[334384315,1723017048231,-4050.7,0.00032809,7]
[334384316,1723017048242,-4050.7,0.00032809,7]
[334384317,1723017048251,-4050.80648964,0.00032809,7]
[334384318,1723017048261,-3000.0,0.0003281,13]
[334384319,1723017048270,-552.050044,0.0003282,7]
[334384320,1723017048280,-3000.0,0.0003282,13]
[334384321,1723017048292,-1000.0,0.0003282,2]
[334384322,1723017048303,-300.9847151,0.00032827,2]
[334384323,1723017048313,-1000.0,0.00032827,2]
[334384324,1723017048323,-3000.0,0.0003283,13]
[334384325,1723017048334,-1000.0,0.00032834,2]
[334384326,1723017048344,-3000.0,0.0003284,13]
[334384327,1723017048353,-1000.0,0.00032846,2]
[334384328,1723017048364,-300.0,0.00032849,2]
[334384329,1723017048374,-2000.0,0.0003285,2]
[334384330,1723017048383,-3000.0,0.0003285,13]
[334384331,1723017048395,-1000.0,0.00032851,2]
[334384332,1723017048405,-2000.0,0.00032858,2]
[334384333,1723017048416,-3000.0,0.0003286,13]
[334384334,1723017048425,-151.0,0.00032865,7]
[334384335,1723017048435,-197.546666,0.00032865,7]
[334384336,1723017048444,-2000.0,0.00032867,2]
[334384337,1723017048455,-3000.0,0.0003287,13]
[334384338,1723017048464,-1000.0,0.00032872,2]
[334384339,1723017048473,-271.4386735,0.00032873,2]
[334384340,1723017048491,-153.0,0.00032873,2]
[334384341,1723017048501,-271.4386735,0.00032873,2]
[334384342,1723017048516,-63033.37842385,0.00032875,21]
[334384343,1723017048526,-121768.21844009,0.00032875,14]
[334384344,1723017048536,-160.0,0.00032875,10]
[334384345,1723017048545,-161.46612309,0.00032875,10]
[334384346,1723017048555,-1513.58077823,0.00032875,14]
[334384347,1723017048564,-160.0,0.00032875,10]
[334384348,1723017048574,-160.0,0.00032876,3]
[334384349,1723017048583,-162.34820883,0.00032876,5]
[334384350,1723017048592,-500.0,0.00032876,14]
[334384351,1723017048601,-500.0,0.00032876,14]
[334384352,1723017048609,-500.0,0.00032876,14]
[334384353,1723017048618,-500.0,0.00032876,14]
[334384354,1723017048627,-500.0,0.00032876,14]
[334384355,1723017048637,-307.88417958,0.00032876,14]
[334384356,1723017048646,-500.0,0.00032876,2]
[334384357,1723017048655,-500.0,0.00032876,14]
[334384358,1723017048665,-500.0,0.00032876,14]
[334384359,1723017048675,-304.84690658,0.00032876,14]
[334384360,1723017048684,-595.41,0.00032876,14]
[334384361,1723017048695,-500.0,0.00032876,14]
[334384362,1723017048706,-500.0,0.00032876,14]
[334384363,1723017048717,-500.0,0.00032876,14]
[334384364,1723017048726,-500.0,0.00032876,14]
[334384365,1723017048749,-338.00009204,0.00032876,14]
[334384366,1723017048758,-500.0,0.00032876,14]
[334384367,1723017048768,-500.0,0.00032876,14]
[334384368,1723017048778,-500.0,0.00032876,14]
[334384369,1723017048788,-500.0,0.00032876,14]
[334384370,1723017048798,-704.01,0.00032876,14]
[334384371,1723017048807,-500.0,0.00032876,14]
[334384372,1723017048817,-500.0,0.00032876,14]
[334384373,1723017048827,-500.0,0.00032876,14]
[334384374,1723017048837,-500.0,0.00032876,14]
[334384375,1723017048846,-500.0,0.00032876,14]
[334384376,1723017048856,-799.8,0.00032876,14]
[334384377,1723017048866,-500.0,0.00032876,14]
[334384378,1723017048875,-500.0,0.00032876,14]
[334384379,1723017048885,-500.0,0.00032876,14]
[334384380,1723017048894,-1671.33,0.00032876,14]
[334384381,1723017048904,-500.0,0.00032876,14]
[334384382,1723017048914,-500.0,0.00032876,14]
[334384383,1723017048924,-528.80456272,0.00032876,14]
[334384384,1723017048933,-566.91,0.00032876,14]
[334384385,1723017048942,-500.0,0.00032876,14]
[334384386,1723017048952,-500.0,0.00032876,14]
[334384387,1723017048961,-524.08337142,0.00032876,14]
[334384388,1723017048971,-509.56708988,0.00032876,14]
[334384389,1723017048991,-400.52575816,0.00032876,14]
[334384390,1723017049001,-500.0,0.00032876,14]
[334384391,1723017049012,-1266.37,0.00032876,14]
[334384392,1723017049023,-500.0,0.00032876,14]
[334384393,1723017049033,-500.0,0.00032876,14]
[334384394,1723017049045,-500.0,0.00032876,14]
[334384395,1723017049055,-500.0,0.00032876,14]
[334384396,1723017049064,-502.01469349,0.00032876,14]
[334384397,1723017049074,-500.0,0.00032876,14]
[334384398,1723017049085,-500.0,0.00032876,14]
[334384399,1723017049094,-653.99,0.00032876,14]
[334384400,1723017049104,-500.0,0.00032876,14]
[334384401,1723017049114,-500.29316283,0.00032876,14]
[334384402,1723017049124,-500.0,0.00032876,14]
[334384403,1723017049133,-500.0,0.00032876,14]
[334384404,1723017049142,-508.23726602,0.00032876,14]
[334384405,1723017049151,-2797.63,0.00032876,14]
[334384406,1723017049161,-500.76420498,0.00032876,14]
[334384407,1723017049171,-501.060116,0.00032876,7]
[334384408,1723017049181,-500.0,0.00032876,14]
[334384409,1723017049191,-431.87682012,0.00032876,14]
[334384410,1723017049202,-500.0,0.00032876,14]
[334384411,1723017049212,-500.0,0.00032876,14]
[334384412,1723017049222,-328.64055546,0.00032876,6]
[334384413,1723017049245,-500.0,0.00032876,14]